bitfinex/quotes_BTCUSD_20251113
["timestamp","ask_amount","ask_price","bid_price","bid_amount"]
[1763027439692,0.68376872,102860.0,102850.0,0.00264495]
[1763027440133,0.25566286,102860.0,102850.0,0.02264495]
[1763027440364,0.25566286,102860.0,102850.0,0.26918289]
[1763027440576,0.68376872,102860.0,102850.0,0.00264495]
[1763027440788,0.68376872,102860.0,102850.0,0.02264495]
[1763027441010,0.68376872,102860.0,102850.0,0.00264495]
[1763027441233,0.68376872,102860.0,102850.0,0.02264495]
[1763027441451,0.68376872,102860.0,102850.0,0.24440289]
[1763027442675,0.68376872,102860.0,102850.0,0.04994495]
[1763027442882,0.68376872,102860.0,102850.0,0.24440289]
[1763027443097,0.68376872,102860.0,102850.0,0.04994495]
[1763027443756,0.68376872,102860.0,102850.0,0.22440289]
[1763027443975,0.68376872,102860.0,102850.0,0.24440289]
[1763027444457,0.01780508,102860.0,102850.0,0.26918289]
[1763027444897,0.01780508,102860.0,102850.0,0.69728875]
[1763027445097,0.01780508,102860.0,102850.0,0.26918289]
[1763027446008,0.01780508,102860.0,102850.0,0.69728875]
[1763027446171,0.01780508,102860.0,102850.0,0.26918289]
[1763027446372,0.00013947,102870.0,102860.0,0.19443904]
[1763027446574,0.01807594,102870.0,102860.0,0.29658904]
[1763027447001,0.21249608,102870.0,102860.0,0.29658904]
[1763027447239,0.21249608,102870.0,102860.0,0.27658904]
[1763027447556,0.21249608,102870.0,102860.0,0.29658904]
[1763027448318,0.64060194,102870.0,102860.0,0.27658904]
[1763027448652,0.64060194,102870.0,102860.0,0.29658904]
[1763027448794,0.62266547,102870.0,102860.0,0.29658904]
[1763027448995,0.62266547,102870.0,102860.0,0.10215]
[1763027449202,0.62266547,102870.0,102860.0,0.08215]
[1763027449396,0.62266547,102870.0,102860.0,0.29658904]
[1763027449604,0.62266547,102870.0,102860.0,0.08215]
[1763027449828,0.62266547,102870.0,102860.0,0.29658904]
[1763027450036,0.66608421,102870.0,102860.0,0.06236]
[1763027450234,0.66608421,102870.0,102860.0,0.04236]
[1763027451349,0.66608421,102870.0,102860.0,0.06236]
[1763027451563,0.66608421,102870.0,102860.0,0.05737]
[1763027451850,0.66608421,102870.0,102860.0,0.07737]
[1763027452012,0.66608421,102870.0,102860.0,0.06236]
[1763027452413,0.66608421,102870.0,102860.0,0.04236]
[1763027452621,0.66608421,102870.0,102860.0,0.06236]
[1763027452835,0.66608421,102870.0,102860.0,0.04236]
[1763027453038,0.66608421,102870.0,102860.0,0.08810615]
[1763027453246,0.66608421,102870.0,102860.0,0.06236]
[1763027453659,0.66608421,102870.0,102860.0,0.04236]
[1763027453839,0.66608421,102870.0,102860.0,0.06236]
[1763027454049,0.66608421,102870.0,102860.0,0.04236]
[1763027454312,0.66608421,102870.0,102860.0,0.06236]
[1763027454554,0.66608421,102870.0,102860.0,0.04236]
[1763027454991,0.66608421,102870.0,102860.0,0.06236]
[1763027457111,0.66608421,102870.0,102860.0,0.04236]
[1763027457316,0.66608421,102870.0,102860.0,0.06236]
[1763027457612,0.66608421,102870.0,102860.0,0.0686605]
[1763027457931,0.66608421,102870.0,102860.0,0.0486605]
[1763027458305,0.66608421,102870.0,102860.0,0.0686605]
[1763027458508,0.66608421,102870.0,102860.0,0.0486605]
[1763027458727,0.66608421,102870.0,102860.0,0.0686605]
[1763027459753,0.66608421,102870.0,102860.0,0.0486605]
[1763027459955,0.66608421,102870.0,102860.0,0.0686605]
[1763027460127,0.66608421,102870.0,102860.0,0.0486605]
[1763027460569,0.66608421,102870.0,102860.0,0.0686605]
[1763027460768,0.66608421,102870.0,102860.0,0.0486605]
[1763027461070,0.23797835,102870.0,102860.0,0.0486605]
[1763027461293,0.66608421,102870.0,102860.0,0.06236]
[1763027461601,0.66608421,102870.0,102860.0,0.04236]
[1763027462022,0.66608421,102870.0,102860.0,0.06236]
[1763027462405,0.66608421,102870.0,102860.0,0.04236]
[1763027462619,0.66608421,102870.0,102860.0,0.06236]
[1763027463318,0.66608421,102870.0,102860.0,0.04236]
[1763027463518,0.66608421,102870.0,102860.0,0.06236]
[1763027464291,0.66608421,102870.0,102860.0,0.04236]
[1763027464496,0.00013947,102870.0,102860.0,0.28889904]
[1763027464735,0.00013947,102870.0,102860.0,0.30889904]
[1763027465221,0.49409061,102870.0,102860.0,0.30889904]
[1763027465909,0.29967047,102870.0,102860.0,0.30889904]
[1763027466117,0.86050935,102870.0,102860.0,0.04236]
[1763027466332,0.81709061,102870.0,102860.0,0.0696]
[1763027466550,0.49409061,102870.0,102860.0,0.30889904]
[1763027468145,0.00013947,102870.0,102860.0,0.30889904]
[1763027468319,0.49409061,102870.0,102860.0,0.30889904]
[1763027468705,0.49409061,102870.0,102860.0,0.11446]
[1763027469290,0.49409061,102870.0,102860.0,0.30889904]
[1763027470109,0.19455961,102870.0,102860.0,0.30889904]
[1763027470311,0.19455961,102870.0,102860.0,0.09446]
[1763027470312,0.49409061,102870.0,102860.0,0.09446]
[1763027470692,0.49409061,102870.0,102860.0,0.0696]
[1763027471297,0.49409061,102870.0,102860.0,0.0896]
[1763027472056,0.49409061,102870.0,102860.0,0.0696]
[1763027472231,0.49409061,102870.0,102860.0,0.0896]
[1763027472940,0.79362161,102870.0,102860.0,0.04236]
[1763027473155,0.19443904,102860.0,102850.0,0.00064495]
[1763027473345,0.79350104,102860.0,102850.0,0.04300495]
[1763027473743,0.79350104,102860.0,102850.0,0.06300495]
[1763027473959,0.79350104,102860.0,102850.0,0.04300495]
[1763027474532,0.79350104,102860.0,102850.0,0.04857445]
[1763027474732,0.79350104,102860.0,102850.0,0.04957445]
[1763027474966,0.86877172,102860.0,102850.0,0.04957445]
[1763027475430,0.86877172,102860.0,102850.0,0.05057445]
[1763027475917,0.86877172,102860.0,102850.0,0.08184445]
[1763027476751,0.86877172,102860.0,102850.0,0.09781445]
[1763027477334,0.86877172,102860.0,102850.0,0.07781445]
[1763027477508,0.86877172,102860.0,102850.0,0.09781445]
[1763027477708,0.86877172,102860.0,102850.0,0.08184445]
[1763027478102,1.5431044,102860.0,102850.0,0.05057445]
[1763027478303,0.86877172,102860.0,102850.0,0.05057445]
[1763027478506,0.86877172,102860.0,102850.0,0.07057445]
[1763027478709,0.86877172,102860.0,102850.0,0.05057445]
[1763027478906,1.5431044,102860.0,102850.0,0.05057445]
[1763027479098,1.5431044,102860.0,102850.0,0.07057445]
[1763027479301,0.86877172,102860.0,102850.0,0.07057445]
[1763027479781,1.90952314,102860.0,102850.0,0.05057445]
[1763027479897,0.56085778,102860.0,102850.0,0.05057445]
[1763027480110,1.23519046,102860.0,102850.0,0.07057445]
[1763027480347,1.23519046,102860.0,102850.0,0.05057445]
[1763027480870,1.90952314,102860.0,102850.0,0.05057445]
[1763027481501,1.90952314,102860.0,102840.0,0.0004]
[1763027481502,0.56087668,102850.0,102840.0,0.0004]
[1763027481708,1.90954204,102850.0,102840.0,0.0004]
[1763027482144,1.91343433,102850.0,102840.0,0.0004]
[1763027482337,1.28166165,102850.0,102840.0,0.0004]
[1763027482821,1.50643921,102850.0,102840.0,0.0004]
[1763027484053,1.91343433,102850.0,102840.0,0.0004]
[1763027484256,1.91343433,102850.0,102830.0,0.0004]
[1763027484257,0.19447685,102840.0,102830.0,0.0004]
[1763027484464,1.9143466,102840.0,102830.0,0.0004]
[1763027484923,1.07691416,102840.0,102830.0,0.0004]
[1763027487382,1.07691416,102840.0,102830.0,0.00089003]
[1763027487581,1.10610719,102840.0,102830.0,0.00089003]
[1763027488376,1.20250667,102840.0,102830.0,0.00089003]
[1763027488588,1.24506667,102840.0,102830.0,0.00089003]
[1763027489256,1.24606667,102840.0,102830.0,0.00089003]
[1763027489907,0.5609145,102830.0,102820.0,8e-05]
[1763027490105,1.07214742,102830.0,102820.0,8e-05]
[1763027490593,1.10134644,102830.0,102820.0,8e-05]
[1763027491024,1.10134644,102830.0,102820.0,0.00054692]
[1763027491223,1.10134644,102830.0,102790.0,0.0004]
[1763027491224,0.23797126,102800.0,102790.0,0.0004]
[1763027491429,0.74920418,102800.0,102790.0,0.00054007]
[1763027492717,0.74920418,102800.0,102790.0,0.01188007]
[1763027494129,0.74920418,102800.0,102790.0,0.01288007]
[1763027495017,0.70578544,102800.0,102790.0,0.22400152]
[1763027495271,0.70578544,102800.0,102790.0,0.24734152]
[1763027495477,0.25561646,102800.0,102790.0,0.24734152]
[1763027495654,0.25561646,102810.0,102800.0,0.19455252]
[1763027495859,0.45015006,102810.0,102800.0,0.27704252]
[1763027496065,0.25561646,102810.0,102800.0,0.27704252]
[1763027496266,0.45015006,102810.0,102800.0,0.27704252]
[1763027496466,0.25561646,102810.0,102800.0,0.27704252]
[1763027496989,0.45015006,102810.0,102800.0,0.25370252]
[1763027497216,0.45015006,102810.0,102800.0,0.0426]
[1763027500075,0.70576652,102810.0,102800.0,0.0426]
[1763027500286,0.45015006,102810.0,102800.0,0.0426]
[1763027500481,0.45015006,102810.0,102800.0,0.27704252]
[1763027501401,0.25561646,102810.0,102800.0,0.27777784]
[1763027501617,0.45015006,102810.0,102800.0,0.27777784]
[1763027504189,0.1945336,102810.0,102800.0,0.27777784]
[1763027504545,0.25561646,102810.0,102800.0,0.27777784]
[1763027504917,0.45013114,102820.0,102810.0,0.1945336]
[1763027505086,0.45013114,102820.0,102810.0,0.2457636]
[1763027505289,0.45013114,102820.0,102810.0,0.24625376]
[1763027505494,0.7057476,102820.0,102810.0,0.24625376]
[1763027506117,0.7057476,102820.0,102810.0,0.05172016]
[1763027506548,0.7057476,102820.0,102810.0,0.00049016]
[1763027507075,0.74916634,102820.0,102810.0,0.04305016]
[1763027507419,1.12037073,102820.0,102810.0,0.00049016]
[1763027510085,1.13833409,102820.0,102810.0,0.00049016]
[1763027510643,1.13833697,102820.0,102810.0,0.00049016]
[1763027513273,1.16753716,102820.0,102810.0,0.00049016]
[1763027514227,1.16853716,102820.0,102810.0,0.00049016]
[1763027514424,1.17752527,102820.0,102810.0,0.00049016]
[1763027514657,1.27392475,102820.0,102810.0,0.00049016]
[1763027514870,1.27492475,102820.0,102810.0,0.00049016]
[1763027515736,1.27492475,102820.0,102810.0,1e-08]
[1763027515940,0.56097126,102800.0,102790.0,0.00054007]
[1763027516142,0.81658772,102800.0,102790.0,0.00054007]
[1763027516839,0.81658772,102800.0,102790.0,0.02054007]
[1763027517060,0.19457145,102790.0,102780.0,0.01250069]
[1763027517263,1.11966816,102790.0,102780.0,0.01250069]
[1763027517901,1.14887662,102790.0,102780.0,0.01250069]
[1763027519077,1.14887662,102790.0,102780.0,0.01450069]
[1763027519257,1.2452761,102790.0,102780.0,0.01450069]
[1763027519459,1.2452761,102790.0,102780.0,0.01250069]
[1763027521010,0.73404318,102790.0,102780.0,0.01250069]
[1763027521228,1.14887662,102790.0,102780.0,0.01250069]
[1763027522989,1.98857214,102790.0,102780.0,0.01250069]
[1763027523173,1.98857214,102790.0,102780.0,0.01323623]
[1763027524523,2.03199088,102790.0,102780.0,0.01323623]
[1763027524699,0.19462826,102760.0,102750.0,0.0004]
[1763027524906,1.58897544,102760.0,102750.0,0.0004]
[1763027525911,2.05089492,102760.0,102750.0,0.0034]
[1763027526132,1.95449544,102760.0,102750.0,0.0034]
[1763027526329,1.98371158,102760.0,102750.0,0.0054]
[1763027526493,1.98371158,102760.0,102750.0,0.0034]
[1763027526692,0.59026314,102760.0,102750.0,0.0034]
[1763027526891,1.10210856,102760.0,102750.0,0.0014]
[1763027527157,1.07289242,102760.0,102750.0,0.0014]
[1763027527362,1.07289242,102760.0,102750.0,0.0214]
[1763027528246,1.07289242,102760.0,102750.0,0.0024]
[1763027528567,0.84402567,102760.0,102750.0,0.0024]
[1763027528767,1.02947368,102760.0,102750.0,0.0024]
[1763027530357,1.12587316,102760.0,102750.0,0.00313586]
[1763027530559,1.1692919,102760.0,102750.0,0.00313586]
[1763027530983,0.70649262,102750.0,102740.0,0.0004]
[1763027531242,0.74905262,102750.0,102740.0,0.0004]
[1763027531974,0.79725701,102750.0,102740.0,0.0004]
[1763027532165,0.79725701,102750.0,102740.0,0.00086739]
[1763027532360,0.89365649,102750.0,102740.0,0.00086739]
[1763027533028,0.89465649,102750.0,102740.0,0.00086739]
[1763027533228,0.38381107,102750.0,102740.0,0.00086739]
[1763027533481,0.89565649,102750.0,102740.0,0.00086739]
[1763027533819,0.79925701,102750.0,102740.0,0.00086739]
[1763027534018,0.75669701,102750.0,102740.0,0.00086739]
[1763027534234,0.5433343,102750.0,102740.0,0.00086739]
[1763027534611,0.79925701,102750.0,102740.0,0.00086739]
[1763027535232,0.80011575,102750.0,102740.0,0.00086739]
[1763027535555,0.89651523,102750.0,102740.0,0.00086739]
[1763027535749,0.93907523,102750.0,102740.0,0.00086739]
[1763027536174,0.84267575,102750.0,102740.0,0.00086739]
[1763027536375,1.16567575,102750.0,102740.0,0.00086739]
[1763027536578,1.16567575,102750.0,102740.0,0.00024273]
[1763027536789,0.56110383,102730.0,102720.0,0.0004]
[1763027536987,0.60366383,102730.0,102720.0,0.00054005]
[1763027537415,0.66114542,102730.0,102720.0,0.00054005]
[1763027537576,1.51981196,102730.0,102720.0,0.00054005]
[1763027538169,1.51981196,102730.0,102720.0,0.00154005]
[1763027539356,0.66114542,102730.0,102720.0,0.00054005]
[1763027539558,1.51981196,102730.0,102720.0,0.00054005]
[1763027539787,1.52081196,102730.0,102720.0,0.00054005]
[1763027541431,0.19474196,102700.0,102690.0,0.00529655]
[1763027541826,0.66749397,102700.0,102690.0,0.00543635]
[1763027542072,0.24796873,102680.0,102650.0,0.0005]
[1763027542267,0.62415111,102660.0,102650.0,0.03689024]
[1763027542758,0.62415111,102660.0,102650.0,0.0304604]
[1763027542963,0.62415111,102660.0,102650.0,0.0028504]
[1763027543803,0.62415111,102660.0,102650.0,0.0248504]
[1763027544009,0.62415111,102660.0,102650.0,0.0048504]
[1763027544218,0.62415111,102660.0,102650.0,0.0248504]
[1763027544423,0.62415111,102660.0,102650.0,0.0407504]
[1763027544629,0.62415111,102660.0,102650.0,0.0437504]
[1763027545064,0.62415111,102660.0,102650.0,0.0864704]
[1763027545238,0.62415111,102660.0,102650.0,0.0664704]
[1763027545440,0.42933327,102660.0,102650.0,0.26130722]
[1763027545657,0.56117967,102690.0,102670.0,0.19479614]
[1763027545658,0.19476093,102690.0,102670.0,0.19479614]
[1763027545822,0.62409452,102690.0,102680.0,0.02761]
[1763027546034,0.62409452,102690.0,102680.0,0.05215]
[1763027546240,0.62409452,102690.0,102680.0,0.02761]
[1763027546912,0.62409452,102690.0,102680.0,0.01171]
[1763027547295,0.24298428,102680.0,102670.0,0.001]
[1763027547468,1.10165082,102680.0,102670.0,0.001]
[1763027547793,1.10165082,102680.0,102670.0,0.002]
[1763027548007,1.10165082,102680.0,102670.0,0.001]
[1763027548408,0.19479887,102670.0,102660.0,0.02]
[1763027548534,0.19481784,102660.0,102650.0,0.28273262]
[1763027548734,0.62415111,102660.0,102650.0,0.04336024]
[1763027549178,0.62415111,102660.0,102650.0,0.00064024]
[1763027549384,1.03877424,102660.0,102650.0,0.00064024]
[1763027549541,1.13517372,102660.0,102650.0,0.00064024]
[1763027549970,1.13517372,102660.0,102650.0,0.00264024]
[1763027550656,1.13517372,102660.0,102650.0,0.00564024]
[1763027551013,1.13517372,102660.0,102650.0,0.00364024]
[1763027551215,1.13517372,102660.0,102650.0,0.00064024]
[1763027551417,1.13517372,102660.0,102650.0,0.0028504]
[1763027552663,1.03877424,102660.0,102650.0,0.0028504]
[1763027555373,1.08165424,102660.0,102650.0,0.0028504]
[1763027556869,1.03877424,102660.0,102650.0,0.0028504]
[1763027559106,0.63631191,102660.0,102650.0,0.0028504]
[1763027559308,1.06564518,102660.0,102650.0,0.0028504]
[1763027559533,1.15471494,102660.0,102650.0,0.0028504]
[1763027559661,1.1541762,102660.0,102650.0,0.0028504]
[1763027559860,1.1112962,102660.0,102650.0,0.0028504]
[1763027560901,0.2127318,102660.0,102650.0,0.24982722]
[1763027561106,0.64206507,102660.0,102650.0,0.0978704]
[1763027561766,0.64206507,102660.0,102650.0,0.1178704]
[1763027562471,0.64206507,102660.0,102650.0,0.0978704]
[1763027562896,0.64206507,102660.0,102650.0,0.1178704]
[1763027563028,0.64206507,102660.0,102650.0,0.12697117]
[1763027563229,0.64206507,102660.0,102650.0,0.0978704]
[1763027563434,0.64206507,102660.0,102650.0,0.0741004]
[1763027563817,0.64206507,102660.0,102650.0,0.0657304]
[1763027564024,0.64206507,102660.0,102650.0,0.0457304]
[1763027564287,0.72575146,102660.0,102650.0,0.0457304]
[1763027565780,0.64206507,102660.0,102650.0,0.0457304]
[1763027566352,1.01741697,102660.0,102650.0,0.0028504]
[1763027566557,1.06025697,102660.0,102650.0,0.0028504]
[1763027566979,1.00848381,102660.0,102650.0,0.0028504]
[1763027567187,0.96506507,102660.0,102650.0,0.0194004]
[1763027567392,0.96506507,102660.0,102650.0,0.0028504]
[1763027567602,0.96606507,102660.0,102650.0,0.21768722]
[1763027567808,0.96606507,102660.0,102650.0,0.23423722]
[1763027568030,0.96606507,102660.0,102650.0,0.0394004]
[1763027568235,0.96606507,102660.0,102650.0,0.25800722]
[1763027568442,0.01891396,102660.0,102650.0,0.30084722]
[1763027568649,0.2137318,102660.0,102650.0,0.30084722]
[1763027568864,0.64406507,102660.0,102650.0,0.30084722]
[1763027569065,0.64406507,102660.0,102650.0,0.0456904]
[1763027569268,0.64406507,102660.0,102650.0,0.0656904]
[1763027569443,0.64306507,102660.0,102650.0,0.0656904]
[1763027569647,0.64206507,102660.0,102650.0,0.0656904]
[1763027569944,0.2127318,102660.0,102650.0,0.0656904]
[1763027570161,0.64206507,102660.0,102650.0,0.0656904]
[1763027570567,0.2127318,102660.0,102650.0,0.0656904]
[1763027570857,0.44721429,102660.0,102650.0,0.30084722]
[1763027571092,0.68205654,102680.0,102660.0,0.19481784]
[1763027571296,0.49542181,102680.0,102670.0,0.09121]
[1763027571499,0.6902017,102680.0,102670.0,0.26600887]
[1763027571700,0.49542181,102680.0,102670.0,0.28977887]
[1763027571872,0.44721742,102680.0,102670.0,0.21479887]
[1763027572057,0.19479887,102670.0,102660.0,0.24947784]
[1763027572257,0.64202794,102670.0,102660.0,0.26947784]
[1763027572460,0.64202794,102670.0,102660.0,0.31079784]
[1763027572682,0.21269467,102670.0,102660.0,0.07221]
[1763027572848,0.64202794,102670.0,102660.0,0.28602784]
[1763027573040,0.64202794,102670.0,102660.0,0.09121]
[1763027573414,0.64202794,102670.0,102660.0,0.09221]
[1763027573774,0.64202794,102670.0,102660.0,0.07666]
[1763027574178,0.64202794,102670.0,102660.0,0.05666]
[1763027574877,0.64202794,102670.0,102660.0,0.04484]
[1763027575357,0.0178958,102670.0,102660.0,0.06139]
[1763027575562,0.52747905,102700.0,102680.0,0.19477633]
[1763027575801,0.4659399,102700.0,102690.0,0.22658093]
[1763027576049,0.66071227,102700.0,102690.0,0.03182]
[1763027576202,0.231379,102700.0,102690.0,0.24313093]
[1763027576411,0.98371227,102700.0,102690.0,0.24313093]
[1763027576619,0.231379,102700.0,102690.0,0.26690093]
[1763027576818,0.231379,102700.0,102690.0,0.03182]
[1763027576819,0.66071227,102700.0,102690.0,0.03182]
[1763027577029,0.66071227,102700.0,102680.0,0.23861633]
[1763027577225,0.42933327,102690.0,102680.0,0.25861633]
[1763027577545,0.4472463,102690.0,102680.0,0.25861633]
[1763027577771,0.01791303,102690.0,102680.0,0.29893633]
[1763027577968,0.4472463,102690.0,102680.0,0.29793633]
[1763027578477,0.01791303,102690.0,102680.0,0.29793633]
[1763027579144,0.4472463,102690.0,102680.0,0.29793633]
[1763027579343,0.01791303,102690.0,102680.0,0.29793633]
[1763027579628,0.4472463,102690.0,102680.0,0.29793633]
[1763027581250,0.01791303,102690.0,102680.0,0.29793633]
[1763027581845,0.01791303,102690.0,102680.0,0.27416633]
[1763027582023,0.64200723,102690.0,102680.0,0.25480989]
[1763027582237,0.64200723,102690.0,102680.0,0.29760989]
[1763027582238,0.21267396,102690.0,102680.0,0.29760989]
[1763027582405,0.01791303,102690.0,102680.0,0.2990829]
[1763027582804,0.01791303,102690.0,102680.0,0.3000829]
[1763027583109,0.21267396,102690.0,102680.0,0.3000829]
[1763027583331,0.64200723,102690.0,102680.0,0.00247301]
[1763027583530,0.64200723,102690.0,102680.0,0.04527301]
[1763027584276,0.64200723,102690.0,102680.0,0.2600529]
[1763027584485,0.64200723,102690.0,102680.0,0.2760629]
[1763027585417,0.64200723,102690.0,102680.0,0.08128301]
[1763027585846,0.64200723,102690.0,102680.0,0.2760629]
[1763027586620,0.64200723,102690.0,102680.0,0.08128301]
[1763027587345,0.64200723,102690.0,102680.0,0.06128301]
[1763027587717,0.64200723,102690.0,102680.0,0.08128301]
[1763027587870,0.64200723,102690.0,102680.0,0.2760629]
[1763027588540,0.01791303,102690.0,102680.0,0.2986929]
[1763027588696,0.62407964,102700.0,102690.0,0.19476093]
[1763027588896,0.65109552,102700.0,102690.0,0.26581093]
[1763027589119,0.45634915,102700.0,102690.0,0.26581093]
[1763027589434,0.44734387,102700.0,102690.0,0.26581093]
[1763027589668,0.64208583,102700.0,102690.0,0.07105]
[1763027589869,0.64208583,102700.0,102690.0,0.04842]
[1763027590170,0.21275256,102700.0,102690.0,0.04842]
[1763027590369,0.64208583,102700.0,102690.0,0.04842]
[1763027590728,0.64208583,102700.0,102690.0,0.24318093]
[1763027590940,0.44734387,102700.0,102690.0,0.24581093]
[1763027591122,0.0180106,102700.0,102690.0,0.26581093]
[1763027591327,0.42933327,102710.0,102700.0,0.21474196]
[1763027591564,0.64220816,102710.0,102700.0,0.29614196]
[1763027591769,0.44748516,102710.0,102700.0,0.29614196]
[1763027592383,0.62419563,102710.0,102700.0,0.0814]
[1763027592537,0.64220654,102710.0,102700.0,0.0814]
[1763027592746,0.64320654,102710.0,102700.0,0.07877]
[1763027593470,0.62519563,102710.0,102700.0,0.07877]
[1763027593670,0.62619563,102710.0,102700.0,0.07877]
[1763027593825,0.62619563,102710.0,102700.0,0.27351196]
[1763027594465,0.62619563,102710.0,102700.0,0.07877]
[1763027594839,0.62619563,102710.0,102700.0,0.05877]
[1763027595333,0.43147263,102710.0,102700.0,0.29614196]
[1763027595527,0.62619563,102710.0,102700.0,0.29614196]
[1763027595849,0.62619563,102710.0,102700.0,0.0814]
[1763027596189,0.62619563,102710.0,102700.0,0.29614196]
[1763027596578,0.43147263,102710.0,102700.0,0.27614196]
[1763027596789,0.43147263,102710.0,102700.0,0.29614196]
[1763027597984,0.00213936,102710.0,102700.0,0.27614196]
[1763027598359,0.00213936,102710.0,102700.0,0.70547523]
[1763027598560,0.00213936,102710.0,102700.0,0.72547523]
[1763027598764,0.00213936,102710.0,102700.0,1.04847523]
[1763027598967,0.06106133,102720.0,102710.0,0.194723]
[1763027599153,0.06106133,102720.0,102710.0,0.265773]
[1763027599482,0.06106133,102720.0,102710.0,0.52176659]
[1763027599687,0.06106133,102720.0,102710.0,0.265773]
[1763027600324,0.194723,102710.0,102700.0,0.00098181]
[1763027600512,0.45071659,102710.0,102700.0,0.04378181]
[1763027600706,0.45071659,102710.0,102700.0,0.05979181]
[1763027601532,0.45071659,102710.0,102700.0,0.06079181]
[1763027602070,0.45071659,102710.0,102700.0,0.08442181]
[1763027602274,0.25576537,102720.0,102700.0,0.08442181]
[1763027602475,0.45071659,102710.0,102700.0,0.10344]
[1763027603466,0.45071659,102710.0,102700.0,0.08344]
[1763027603669,0.45071659,102710.0,102700.0,0.10244]
[1763027603868,0.45071659,102710.0,102700.0,0.29718196]
[1763027604098,0.45071659,102710.0,102700.0,0.10344]
[1763027604525,0.45071659,102710.0,102700.0,0.10244]
[1763027604675,0.45071659,102710.0,102700.0,0.08244]
[1763027605016,0.45071659,102710.0,102700.0,0.27718196]
[1763027605421,0.45071659,102710.0,102700.0,0.29718196]
[1763027605785,0.45071659,102710.0,102700.0,0.29818196]
[1763027606011,0.45071659,102710.0,102700.0,0.06077]
[1763027606358,0.45071659,102710.0,102700.0,0.04476]
[1763027606999,0.45071659,102710.0,102700.0,0.06476]
[1763027607193,0.45071659,102710.0,102700.0,0.04476]
[1763027607388,0.70671018,102710.0,102700.0,0.04476]
[1763027607799,0.70671018,102710.0,102700.0,0.06476]
[1763027607994,0.70671018,102710.0,102700.0,0.04476]
[1763027608359,0.70671018,102710.0,102700.0,0.04574181]
[1763027608765,0.70671018,102710.0,102700.0,0.04374181]
[1763027609532,1.02971018,102710.0,102700.0,0.04374181]
[1763027611754,0.517723,102710.0,102700.0,0.04374181]
[1763027612105,1.02971018,102710.0,102700.0,0.04374181]
[1763027612862,1.02971018,102710.0,102700.0,0.00098181]
[1763027616796,1.02971018,102710.0,102700.0,0.02098181]
[1763027618550,0.77371659,102710.0,102700.0,0.00098181]
[1763027618973,0.77371659,102710.0,102700.0,0.02098181]
[1763027619681,0.77371659,102710.0,102700.0,0.00098181]
[1763027619878,0.77371659,102710.0,102700.0,0.02098181]
[1763027620187,0.77371659,102710.0,102700.0,0.00098181]
[1763027620630,0.77371659,102710.0,102700.0,0.06124181]
[1763027620752,0.77371659,102710.0,102700.0,0.25598377]
[1763027620956,0.45071659,102710.0,102700.0,0.23598377]
[1763027621165,0.45071659,102710.0,102700.0,0.01733181]
[1763027621349,0.45071659,102710.0,102700.0,0.03733181]
[1763027621784,0.45071659,102710.0,102700.0,0.23207377]
[1763027622192,0.45071659,102710.0,102700.0,0.01733181]
[1763027622420,0.45071659,102710.0,102700.0,0.21207377]
[1763027622595,0.45071659,102710.0,102700.0,0.23598377]
[1763027622802,0.45071659,102710.0,102700.0,0.25598377]
[1763027625053,0.45071659,102710.0,102700.0,0.01733181]
[1763027625416,0.70671018,102710.0,102700.0,0.00098181]
[1763027625659,0.45071659,102710.0,102700.0,0.00098181]
[1763027625999,0.45071659,102710.0,102700.0,0.02098181]
[1763027626414,0.45071659,102710.0,102700.0,0.00098181]
[1763027627456,0.45071659,102710.0,102700.0,0.02098181]
[1763027627869,0.45071659,102710.0,102700.0,0.00098181]
[1763027629215,0.70671018,102710.0,102700.0,0.00098181]
[1763027629709,0.45071659,102710.0,102700.0,0.00098181]
[1763027630134,0.45071659,102710.0,102700.0,0.02098181]
[1763027630618,0.45071659,102710.0,102700.0,0.00098181]
[1763027631185,0.45071659,102710.0,102700.0,0.02098181]
[1763027631405,0.45071659,102710.0,102700.0,0.00098181]
[1763027632099,0.45071659,102710.0,102700.0,0.24841377]
[1763027632297,0.45071659,102710.0,102700.0,0.26841377]
[1763027634480,0.25599359,102710.0,102700.0,0.26841377]
[1763027635166,0.45071659,102710.0,102700.0,0.26841377]
[1763027635580,0.45071659,102710.0,102700.0,0.04976181]
[1763027635783,0.45071659,102710.0,102700.0,0.22450377]
[1763027636213,0.45071659,102710.0,102700.0,0.24450377]
[1763027636985,0.45071659,102710.0,102700.0,0.26841377]
[1763027638641,0.45071659,102710.0,102700.0,0.07367181]
[1763027638986,0.45071659,102710.0,102700.0,0.26841377]
[1763027640312,0.64005492,102720.0,102710.0,0.194723]
[1763027640520,1.09075255,102720.0,102710.0,0.237323]
[1763027640772,0.85838069,102720.0,102710.0,0.04333629]
[1763027641040,0.85838069,102720.0,102710.0,0.06333629]
[1763027641242,0.85838069,102720.0,102710.0,0.04333629]
[1763027641591,1.02969122,102720.0,102710.0,0.00073629]
[1763027641822,1.03069122,102720.0,102710.0,0.00073629]
[1763027642188,1.03169122,102720.0,102710.0,0.00073629]
[1763027642945,1.03169122,102720.0,102710.0,0.02073629]
[1763027643446,1.03169122,102720.0,102710.0,0.00073629]
[1763027643669,0.51970404,102720.0,102710.0,0.00073629]
[1763027643857,1.03169122,102720.0,102710.0,0.02073629]
[1763027644245,1.03169122,102720.0,102710.0,0.00073629]
[1763027644825,1.87226568,102720.0,102710.0,0.00073629]
[1763027645182,2.0120839,102720.0,102710.0,0.00073629]
[1763027645381,1.91568442,102720.0,102710.0,0.00073629]
[1763027645880,1.93384226,102720.0,102710.0,0.00073629]
[1763027646038,1.93284226,102720.0,102710.0,0.00073629]
[1763027646243,1.93184226,102720.0,102710.0,0.00073629]
[1763027646905,1.09170032,102720.0,102710.0,0.00073629]
[1763027648056,1.1880998,102720.0,102710.0,1e-08]
[1763027648212,1.21820097,102720.0,102710.0,1e-08]
[1763027648614,0.70578127,102720.0,102710.0,1e-08]
[1763027648806,1.21820097,102720.0,102710.0,1e-08]
[1763027649225,1.21820097,102720.0,102710.0,0.00100001]
[1763027649421,1.21820097,102720.0,102710.0,0.00200001]
[1763027649623,1.21820097,102720.0,102710.0,1e-08]
[1763027650604,1.2474328,102720.0,102710.0,1e-08]
[1763027651017,0.19476093,102690.0,102680.0,0.04256]
[1763027651220,0.45101747,102690.0,102680.0,0.04256]
[1763027651619,0.19480762,102690.0,102680.0,0.04256]
[1763027651843,0.45101747,102690.0,102680.0,0.04256]
[1763027652093,0.19477989,102680.0,102670.0,0.35482]
[1763027652369,0.45098974,102680.0,102670.0,0.01182]
[1763027652567,0.45098974,102680.0,102670.0,0.03182]
[1763027653786,0.45098974,102680.0,102670.0,0.04822]
[1763027655043,0.45098974,102680.0,102670.0,0.03182]
[1763027655263,0.19477989,102680.0,102670.0,0.22301887]
[1763027655440,0.45098974,102680.0,102670.0,0.22301887]
[1763027655789,0.19481784,102660.0,102650.0,0.20707682]
[1763027655989,0.45102769,102660.0,102650.0,0.20707682]
[1763027656229,0.45102769,102660.0,102650.0,0.02864]
[1763027656460,0.19481784,102660.0,102650.0,0.02864]